bitfinex-derivatives/quotes_ETHF0:USTF0_20241004
["timestamp","ask_amount","ask_price","bid_price","bid_amount"]
[1728047615012,2.22706,2394.1,2394.0,0.41777]
[1728047615208,1.8093,2394.1,2394.0,0.41777]
[1728047616005,2.22705,2394.1,2394.0,0.41777]
[1728047616207,1.8093,2394.1,2394.0,0.41777]
[1728047620209,1.8093,2394.1,2393.9,3.2078]
[1728047620412,1.8093,2394.1,2393.2,3.6257]
[1728047620413,0.41787,2393.4,2393.2,3.6257]
[1728047620611,1.04455,2393.8,2392.9,1.0910841]
[1728047620612,0.4179,2393.3,2393.1,0.41792]
[1728047620918,0.41787,2393.4,2392.9,4.25269]
[1728047621107,0.9241,2393.2,2392.9,4.25269]
[1728047621305,0.41784,2393.6,2393.4,0.41787]
[1728047621512,0.9241,2393.5,2393.4,0.41787]
[1728047622809,1.34196,2393.5,2393.3,0.41788]
[1728047623310,0.9241,2393.5,2393.2,4.1231]
[1728047623506,0.9241,2393.5,2393.4,0.41787]
[1728047627319,1.35883,2393.7,2393.3,0.8899]
[1728047627506,1.35883,2393.7,2393.5,0.41785]
[1728047628025,3.69949339,2394.1,2393.9,0.41778]
[1728047628316,0.41778,2394.0,2393.8,0.4178]
[1728047628530,2.24506,2394.1,2393.9,0.41778]
[1728047629021,1.8273,2394.1,2393.6,4.1649]
[1728047629218,1.8273,2394.1,2394.0,0.41777]
[1728047629516,1.8273,2394.1,2393.9,0.41777]
[1728047630614,1.8273,2394.1,2394.0,0.41777]
[1728047630813,0.4177,2394.4,2394.2,0.41773]
[1728047631021,0.9569,2394.4,2394.2,0.41773]
[1728047631411,1.3746,2394.4,2394.2,0.41773]
[1728047631608,1.3746,2394.4,2393.8,4.1035]
[1728047631609,7.4368,2394.3,2393.8,4.1035]
[1728047631820,3.26,2394.3,2393.8,0.41779]
[1728047632122,0.41776,2394.1,2393.8,0.41779]
[1728047632316,0.41776,2394.1,2393.6,1.9904]
[1728047632510,0.41777,2394.0,2393.8,0.4178]
[1728047632715,0.9416,2394.1,2393.6,1.08730209]
[1728047633019,1.35936,2394.1,2393.9,0.41777]
[1728047634319,0.9416,2394.1,2394.0,0.41777]
[1728047634622,1.35935,2394.1,2393.9,0.41777]
[1728047635818,0.9416,2394.1,2393.9,0.41777]
[1728047636213,0.9416,2394.1,2393.7,1.04455]
[1728047636415,0.9416,2394.1,2393.8,0.4178]
[1728047636620,3.2078,2394.9,2394.1,1.04439]
[1728047636819,3.2078,2394.9,2394.8,3.67763]
[1728047636820,0.8998,2394.9,2394.8,3.67763]
[1728047637027,0.8998,2394.9,2394.6,3.2078]
[1728047637028,0.8998,2394.9,2394.7,0.41763]
[1728047637318,0.8998,2394.9,2394.6,3.62546]
[1728047637516,0.8998,2394.9,2394.6,3.2078]
[1728047637724,0.8998,2394.9,2394.6,3.62546]
[1728047638019,0.8998,2394.9,2394.6,3.2078]
[1728047638218,0.8998,2394.9,2394.4,3.2078]
[1728047638521,0.8998,2394.9,2394.6,0.41766]
[1728047639312,0.8998,2394.9,2394.4,6.4678]
[1728047639524,0.8998,2394.9,2394.7,0.41764]
[1728047640220,1.31743,2394.9,2394.5,0.41767]
[1728047640518,0.41764,2394.8,2394.5,0.41768]
[1728047640715,3.26,2394.8,2394.1,3.2078]
[1728047640915,1.30466,2394.7,2394.3,0.4177]
[1728047641129,0.9083,2394.6,2394.3,0.4177]
[1728047641311,0.9083,2394.6,2394.4,0.41769]
[1728047641516,0.9083,2394.6,2394.1,3.2078]
[1728047641717,0.9083,2394.6,2394.1,4.25217]
[1728047641915,0.9083,2394.6,2394.4,0.41769]
[1728047642225,0.9083,2394.6,2394.5,0.41768]
[1728047642425,0.9083,2394.6,2394.4,0.41769]
[1728047643426,0.9083,2394.6,2394.5,0.41768]
[1728047643617,0.9083,2394.6,2394.1,3.2078]
[1728047643919,0.9083,2394.6,2394.5,0.41768]
[1728047644329,0.9083,2394.6,2394.2,1.04433]
[1728047644330,0.887,2394.7,2394.6,0.41766]
[1728047645137,0.887,2394.7,2394.4,3.2078]
[1728047645313,0.887,2394.7,2394.5,0.41767]
[1728047645827,0.887,2394.7,2394.6,0.41766]
[1728047646119,0.887,2394.7,2394.5,0.41767]
[1728047646621,0.887,2394.7,2394.6,0.41766]
[1728047647123,5.063,2394.7,2394.6,0.41766]
[1728047648023,5.063,2394.7,2394.4,3.2078]
[1728047648024,5.48065,2394.7,2394.4,3.62549]
[1728047648224,0.41767,2394.6,2394.4,0.41769]
[1728047648532,1.30466,2394.7,2394.4,0.41769]
[1728047648737,1.30466,2394.7,2394.2,3.2078]
[1728047649220,0.887,2394.7,2394.2,3.2078]
[1728047649421,0.887,2394.7,2394.3,1.0443]
[1728047649728,0.887,2394.7,2394.6,0.41766]
[1728047650227,5.063,2394.7,2394.6,0.41766]
[1728047652630,6.10713,2394.7,2394.4,0.4177]
[1728047652826,1.30465,2394.7,2394.3,1.0443]
[1728047653020,0.887,2394.7,2394.2,4.25214]
[1728047653228,0.41767,2394.6,2394.5,0.41768]
[1728047653621,4.59367,2394.6,2394.2,4.25214]
[1728047653825,0.41767,2394.6,2394.4,0.41769]
[1728047654626,0.887,2394.7,2394.2,3.2078]
[1728047654833,0.887,2394.7,2394.6,0.41766]
[1728047655337,2.23112,2394.9,2394.6,3.2078]
[1728047655634,1.8135,2394.9,2394.8,0.41763]
[1728047656740,0.8998,2394.9,2394.8,0.41763]
[1728047657234,0.8998,2394.9,2394.7,0.41763]
[1728047657435,0.8998,2394.9,2394.8,0.41763]
[1728047657731,1.31742,2394.9,2394.7,0.41764]
[1728047658235,5.0758,2394.9,2394.8,0.41763]
[1728047658436,0.8998,2394.9,2394.8,0.41763]
[1728047659133,1.31741,2394.9,2394.8,0.41763]
[1728047659829,0.8998,2394.9,2394.8,0.41763]
[1728047660333,5.49341,2394.9,2394.8,0.41763]
[1728047661337,5.0758,2394.9,2394.8,0.41763]
[1728047661827,5.49341,2394.9,2394.8,0.41763]
[1728047662133,5.49341,2394.9,2394.7,0.41763]
[1728047662134,0.41764,2394.8,2394.7,0.41763]
[1728047662337,0.41764,2394.8,2394.1,3.4168]
[1728047662338,7.3838,2394.8,2394.1,3.4168]
[1728047662531,7.3838,2394.8,2394.1,0.41774]
[1728047662532,0.41773,2394.2,2394.1,0.41774]
[1728047662765,1.04424,2394.5,2393.8,4.25231]
[1728047662766,0.41776,2394.1,2394.0,0.41776]
[1728047662932,0.8848,2394.1,2394.0,0.41777]
[1728047664334,11.0616,2394.1,2393.8,3.2078]
[1728047664636,1.30837,2394.0,2393.9,0.41779]
[1728047664834,1.30837,2394.0,2393.6,16.31762]
[1728047665140,0.41779,2393.9,2393.8,0.4178]
[1728047665526,0.41779,2393.9,2393.7,0.41781]
[1728047665731,0.4178,2393.8,2393.7,0.41781]
[1728047666030,0.41779,2393.9,2393.7,0.41782]
[1728047666233,0.4178,2393.8,2393.7,0.41782]
[1728047666432,1.93506,2394.0,2393.6,16.31762]
[1728047666632,0.4178,2393.8,2393.7,0.4178]
[1728047666838,1.93506,2394.0,2393.7,0.41782]
[1728047667136,0.4178,2393.9,2393.7,0.41782]
[1728047667336,0.41781,2393.8,2393.6,16.31762]
[1728047667537,0.41781,2393.8,2393.7,0.41781]
[1728047667739,0.8906,2394.0,2393.6,16.31762]
[1728047667944,0.41781,2393.8,2393.7,0.41781]
[1728047668247,0.41782,2393.7,2393.6,16.73545]
[1728047668443,0.41781,2393.8,2393.7,0.41782]
[1728047669537,0.41782,2393.7,2393.6,16.31762]
[1728047669738,0.41782,2393.7,2393.6,16.73546]
[1728047669739,4.59542,2393.7,2393.6,16.73546]
[1728047669939,10.59542,2393.7,2393.6,16.73546]
[1728047670639,10.59542,2393.7,2393.6,16.31762]
[1728047671037,4.59542,2393.7,2393.6,16.73546]
[1728047671239,4.1776,2393.7,2393.6,16.73546]
[1728047671437,4.59542,2393.7,2393.6,16.73546]
[1728047671641,5.19503,2394.0,2393.6,16.31762]
[1728047671833,0.41782,2393.7,2393.6,16.73545]
[1728047672740,0.41782,2393.7,2393.6,16.31762]
[1728047672960,4.59542,2393.7,2393.6,16.31762]
[1728047673743,11.47982,2393.7,2393.6,16.31762]
[1728047673941,5.47982,2393.7,2393.6,16.31762]
[1728047674134,11.47982,2393.7,2393.6,16.31762]
[1728047678969,11.47982,2393.7,2392.9,0.209]
[1728047678970,0.41794,2393.0,2392.9,0.209]
[1728047679249,0.41794,2393.0,2392.7,0.41799]
[1728047679250,0.41798,2392.8,2392.7,0.41799]
[1728047681551,1.04495,2392.8,2392.5,0.9108]
[1728047681758,0.41801,2392.7,2392.6,0.418]
[1728047681949,0.418,2392.8,2392.7,0.41799]
[1728047682246,0.418,2392.8,2392.5,0.9108]
[1728047682247,1.774,2392.9,2392.5,4.1708]
[1728047682458,1.774,2392.9,2392.8,0.41798]
[1728047682651,2.19196,2392.9,2392.8,0.41798]
[1728047685461,1.28806,2392.9,2392.8,0.41798]
[1728047685647,6.4678,2393.4,2392.8,7.4392]
[1728047685855,0.41792,2393.2,2393.1,0.41791]
[1728047686657,0.4179,2393.3,2393.2,0.41789]
[1728047688160,6.88569,2393.4,2393.3,0.41789]
[1728047688351,3.62569,2393.4,2393.3,0.41789]
[1728047688554,0.4179,2393.3,2393.2,0.4179]
[1728047691456,3.26,2393.4,2392.9,2.6882]
[1728047691758,3.26,2393.4,2392.7,7.51278]
[1728047691759,0.41796,2392.9,2392.8,0.41797]
[1728047692558,4.2039,2393.0,2392.5,1.96258]
[1728047692559,5.24878,2393.0,2392.5,1.96258]
[1728047692758,4.62185,2393.0,2392.9,0.41796]
[1728047693156,4.62185,2393.0,2392.8,0.41796]
[1728047693157,0.41797,2392.9,2392.8,0.41796]
[1728047693461,1.36186,2393.0,2392.9,0.41796]
[1728047693667,1.94573,2393.1,2392.6,1.99074]
[1728047693863,1.94573,2393.1,2392.6,0.9457]
[1728047694050,1.04487,2393.0,2392.6,0.9457]
[1728047694256,0.41798,2392.8,2392.7,0.418]
[1728047695587,1.04487,2393.0,2392.6,0.9457]
[1728047695858,0.418,2392.7,2392.6,1.3637]
[1728047696461,0.418,2392.7,2392.5,0.9175]
[1728047696462,3.26,2392.8,2392.5,0.9175]
[1728047696664,0.9474,2392.7,2392.5,0.9175]
[1728047696963,1.36541,2392.7,2392.6,0.41801]
[1728047697261,0.9474,2392.7,2392.5,0.9175]
[1728047697459,0.41801,2392.6,2392.5,1.33552]
[1728047697664,1.36541,2392.7,2392.6,0.41801]
[1728047697961,0.41801,2392.6,2392.5,1.33552]
[1728047699062,3.26,2392.8,2392.5,0.9175]
[1728047699259,0.41801,2392.7,2392.6,0.41801]
[1728047699459,0.41801,2392.6,2392.5,1.33553]
[1728047700164,0.41801,2392.6,2392.5,0.9175]
[1728047700358,0.41801,2392.6,2392.5,1.33551]
[1728047700561,0.9133,2392.7,2392.6,0.41801]
[1728047700562,0.418,2392.7,2392.6,0.41801]
[1728047700763,0.913,2392.9,2392.5,1.96258]
[1728047700980,0.913,2392.9,2392.7,0.41798]
[1728047701176,0.41798,2392.8,2392.7,0.41798]
[1728047701361,4.1733,2393.0,2392.5,0.9175]
[1728047701564,0.41798,2392.8,2392.7,0.41799]
[1728047702065,0.41796,2392.9,2392.8,0.41796]
[1728047702567,0.41798,2392.8,2392.7,1.29608]
[1728047703470,0.41801,2392.7,2392.6,0.41801]
[1728047703964,0.41801,2392.6,2392.5,1.33553]
[1728047704968,2.25155,2393.0,2392.9,0.41796]
[1728047705666,0.9133,2393.0,2392.9,0.41796]
[1728047705859,0.41793,2393.1,2393.0,0.41793]
[1728047706062,5.25098,2393.2,2392.7,1.045]
[1728047706368,0.41798,2392.8,2392.7,0.41798]
[1728047707067,0.41798,2392.8,2392.5,1.96254]
[1728047707068,5.20951,2392.9,2392.5,0.9175]
[1728047707283,0.41801,2392.7,2392.6,0.41801]
[1728047707659,4.1646,2392.9,2392.5,0.9175]
[1728047707860,0.41799,2392.8,2392.7,0.41798]
[1728047708067,0.41799,2392.8,2392.7,0.418]
[1728047708581,0.8711,2393.1,2393.0,0.41794]
[1728047708884,0.8711,2393.1,2392.8,1.04494]
[1728047708885,4.2062,2393.2,2392.8,1.04494]
[1728047709067,4.62411,2393.2,2393.1,0.41793]
[1728047709259,0.41793,2393.1,2393.0,0.41793]
[1728047709764,0.418,2392.7,2392.6,3.6258]
[1728047709968,0.418,2392.7,2392.6,0.418]
[1728047710465,0.9172,2392.7,2392.6,0.418]
[1728047710863,1.35237,2392.9,2392.8,0.41798]
[1728047711073,0.9344,2392.9,2392.4,2.87352]
[1728047711259,0.418,2392.7,2392.6,0.418]
[1728047712562,0.418,2392.7,2392.4,2.87352]
[1728047712563,3.67798,2392.8,2392.4,2.87352]
[1728047712763,3.67798,2392.8,2392.7,0.418]
[1728047712964,0.41801,2392.7,2392.6,0.418]
[1728047713875,3.26,2392.8,2392.4,1.95913]
[1728047714085,3.67799,2392.8,2392.7,0.418]
[1728047714460,0.41799,2392.8,2392.7,0.418]
[1728047714673,0.8964,2393.0,2392.9,0.41796]
[1728047714975,0.9103,2393.2,2393.1,0.41793]
[1728047715371,0.9177,2393.3,2393.2,0.41791]
[1728047715772,1.828,2393.5,2393.2,4.1784]
[1728047716072,1.828,2393.5,2393.4,0.41787]
[1728047716271,3.69954339,2393.8,2393.2,4.25257]
[1728047716471,5.10973339,2393.9,2393.8,0.4178]
[1728047716678,3.28173339,2393.9,2393.8,0.4178]
[1728047717269,2.20434,2394.2,2394.0,0.41777]
[1728047717480,0.41776,2394.1,2393.5,3.2078]
[1728047717676,0.41776,2394.1,2393.9,0.41778]
[1728047717677,3.67776,2394.1,2393.9,0.41778]
[1728047717876,3.26,2394.1,2393.9,0.41778]
[1728047718067,3.26,2394.1,2393.5,3.2078]
[1728047718271,1.7866,2394.2,2393.7,0.41782]
[1728047718272,3.67779,2393.9,2393.7,0.41782]
[1728047718471,4.30454,2393.8,2393.3,5.007]
[1728047718665,0.8963,2394.1,2393.0,5.0472]
[1728047718666,3.26,2393.4,2393.0,5.0472]
[1728047718871,3.26,2393.6,2393.5,0.41786]
[1728047719070,0.41787,2393.4,2393.1,0.9164]
[1728047719270,0.41787,2393.4,2393.2,0.4179]
[1728047720172,0.41786,2393.5,2393.4,0.41787]
[1728047720772,4.56865,2393.6,2393.1,0.9164]
[1728047720977,4.56865,2393.6,2393.4,0.41787]
[1728047721181,0.41786,2393.5,2393.3,0.41789]
[1728047721577,0.41786,2393.5,2393.3,0.41788]
[1728047721782,0.41787,2393.4,2393.2,0.4179]
[1728047721978,5.19542,2393.6,2393.2,0.4179]
[1728047722277,0.41789,2393.4,2393.3,0.41789]
[1728047722874,5.19542,2393.6,2393.0,5.0472]
[1728047723180,4.56864,2393.6,2393.5,0.41786]
[1728047723487,0.41784,2393.6,2393.5,0.41786]
[1728047723696,7.4376,2393.6,2393.0,5.0472]
[1728047723993,3.67788,2393.4,2393.3,0.41789]
[1728047724583,0.4179,2393.3,2393.2,0.4179]
[1728047725697,0.4179,2393.3,2392.8,3.03112055]
[1728047725698,0.41791,2393.3,2392.8,2.88805]
[1728047725892,0.8917,2393.2,2393.1,0.41793]
[1728047727108,1.04464,2393.6,2393.0,3.2078]
[1728047727109,3.26,2393.6,2393.0,3.2078]
[1728047727299,0.8917,2393.6,2393.5,0.41786]
[1728047727500,0.9303,2393.7,2393.3,4.25253]
[1728047727689,1.34813,2393.7,2393.6,0.41784]
[1728047728305,1.34813,2393.7,2393.4,0.9255]
[1728047728306,0.9303,2393.7,2393.5,0.41785]
[1728047728595,0.41784,2393.6,2393.5,0.41785]
[1728047728901,0.41784,2393.6,2393.4,0.41786]
[1728047729195,0.41787,2393.4,2393.3,3.2078]
[1728047729392,3.26,2393.4,2393.0,0.906]
[1728047729589,0.9417,2393.3,2393.2,0.41791]
[1728047730894,1.34813,2393.7,2393.2,8.43097]
[1728047731094,2.28983,2393.7,2393.3,0.41789]
[1728047731300,1.872,2393.7,2393.3,1.7517]
[1728047731497,2.28983,2393.7,2393.5,0.41785]
[1728047732289,1.872,2393.7,2393.4,0.41787]
[1728047732494,3.26,2393.6,2393.2,3.2078]
[1728047732703,3.67785,2393.6,2393.5,0.41786]
[1728047733619,0.41784,2393.6,2393.5,0.41786]
[1728047734694,0.41784,2393.6,2393.5,0.41785]
[1728047735900,0.4178,2393.9,2393.6,0.41784]
[1728047736100,0.9303,2393.9,2393.8,0.4178]
[1728047736703,6.4678,2394.4,2393.8,11.0632]
[1728047737003,0.9303,2394.3,2394.2,0.41772]
[1728047737200,0.9283,2394.5,2394.1,4.0997]
[1728047737401,0.4177,2394.4,2394.2,0.41773]
[1728047737604,3.6777,2394.4,2394.2,0.41773]
[1728047737803,0.8849,2394.3,2394.2,0.41773]
[1728047740109,3.26,2394.4,2394.1,3.2078]
[1728047740427,0.9283,2394.5,2394.1,4.25229]
[1728047740706,0.9283,2394.5,2394.3,0.41775]
[1728047740909,1.34602,2394.5,2394.3,0.41775]
[1728047741407,0.9283,2394.5,2394.1,3.2078]
[1728047741599,0.9283,2394.5,2394.3,0.41775]
[1728047741798,1.34603,2394.5,2394.3,0.41775]
[1728047742205,5.1372,2394.6,2394.1,4.25228]
[1728047742206,1.8772,2394.6,2394.1,4.25228]
[1728047742509,0.9303,2394.6,2394.5,0.41772]
[1728047742710,4.127,2394.8,2394.3,1.0444]
[1728047742902,3.26,2394.6,2394.1,3.2078]
[1728047743104,3.67774,2394.4,2394.2,0.41777]
[1728047743420,0.8638,2394.3,2394.2,0.41778]
[1728047743712,1.7308,2394.3,2394.2,0.41778]
[1728047744599,0.41782,2394.0,2393.8,3.2078]
[1728047744802,3.26,2393.9,2393.3,8.40063]
[1728047745008,1.8385,2393.8,2393.3,3.2078]
[1728047745210,3.26,2393.6,2393.3,3.2078]
[1728047745399,3.26,2393.6,2393.5,0.4179]
[1728047745602,0.8847,2393.7,2393.3,4.25263]
[1728047745898,0.9355,2393.8,2393.3,4.25263]
[1728047746100,0.9355,2393.8,2393.7,0.41786]
[1728047748104,1.782,2394.2,2394.0,0.41781]
[1728047748105,2.19979,2394.2,2394.0,0.41781]
[1728047748302,2.19979,2394.2,2393.4,3.26]
[1728047748303,4.1205,2394.1,2393.4,0.209]
[1728047748501,3.67786,2393.8,2393.6,0.41788]
[1728047748700,4.30463,2393.8,2393.4,0.41792]
[1728047748904,0.41789,2393.6,2393.4,0.41792]
[1728047749105,0.41784,2393.9,2393.7,0.41786]
[1728047749305,0.8605,2394.0,2393.9,0.41783]
[1728047749610,1.7924,2394.2,2394.1,0.41779]
[1728047749813,3.07068,2394.2,2394.1,0.41779]
[1728047750912,0.8605,2394.2,2394.1,0.41779]
[1728047753115,1.27828,2394.2,2394.1,0.41779]
[1728047753510,1.27828,2394.2,2393.9,0.13820191]
[1728047753714,0.8605,2394.2,2394.1,0.41779]
[1728047754013,1.27828,2394.2,2394.1,0.41779]
[1728047755514,0.41779,2394.2,2393.9,0.41783]
[1728047755714,0.41779,2394.2,2393.6,1.18944338]
[1728047755715,0.8839,2394.1,2393.6,1.18944338]
[1728047755917,0.41783,2393.9,2393.8,0.41783]
[1728047756109,1.8309,2394.0,2393.9,0.41783]
[1728047756110,2.24872,2394.0,2393.9,0.41783]
[1728047757617,0.41783,2393.9,2393.8,0.41783]
[1728047757919,2.24872,2394.0,2393.9,0.41783]
[1728047759011,2.24872,2394.0,2393.6,1.04471]
[1728047759215,2.24872,2394.0,2393.8,0.41783]
[1728047759612,1.8309,2394.0,2393.7,0.41786]
[1728047759807,0.41784,2393.9,2393.8,0.41784]
[1728047760313,2.24872,2394.0,2393.9,0.41783]
[1728047761416,2.24871,2394.0,2393.9,0.41783]
[1728047761918,2.24871,2394.0,2393.5,5.12584]
[1728047761919,0.41786,2393.8,2393.7,0.41786]
[1728047762117,1.8309,2394.0,2393.5,3.2078]
[1728047762421,0.41784,2393.9,2393.8,0.41784]
[1728047762613,1.8309,2394.0,2393.4,5.23192248]
[1728047762813,0.9506,2394.0,2393.9,0.41783]
[1728047764522,0.8839,2394.1,2393.9,4.1768]
[1728047764821,0.9432,2394.4,2393.9,6.4678]
[1728047764822,1.8336,2394.4,2393.9,6.4678]
[1728047765019,1.8081,2394.4,2394.3,0.41776]
[1728047765317,1.8081,2394.4,2394.1,3.26]
[1728047765318,3.2078,2394.5,2394.4,0.41774]
[1728047765519,0.9478,2394.6,2394.2,1.97053]
[1728047765710,0.9478,2394.6,2394.2,0.9261]
[1728047765913,4.2078,2394.6,2394.0,0.9166]
[1728047766218,3.26,2394.3,2393.9,3.2078]
[1728047766517,3.26,2394.1,2393.9,3.2078]
[1728047766720,1.36561,2394.0,2393.9,3.2078]
[1728047767814,1.36561,2394.0,2393.9,3.62563]
[1728047768021,0.9478,2394.0,2393.9,3.62563]
[1728047768213,1.36561,2394.0,2393.9,3.2078]
[1728047768420,1.36561,2394.0,2393.8,0.41783]
[1728047768814,0.9478,2394.0,2393.5,1.04475]
[1728047769033,1.36561,2394.0,2393.9,0.41783]
[1728047770111,0.9478,2394.0,2393.5,1.18393927]
[1728047770322,0.9478,2394.0,2393.4,5.9735]
[1728047770323,4.2078,2394.0,2393.4,1.7969]
[1728047770520,3.26,2393.8,2393.1,1.1111]
[1728047770714,3.26,2393.6,2393.1,1.94702]
[1728047770915,0.41789,2393.6,2393.5,0.4179]
[1728047771119,1.7252,2393.7,2393.6,0.41788]
[1728047771422,7.65732935,2394.1,2393.7,1.04465]
[1728047771722,2.14297,2394.3,2394.1,0.41778]
[1728047772020,0.8635,2394.3,2394.2,0.41778]
[1728047775226,3.2078,2394.7,2394.2,0.41778]
[1728047775418,3.28173339,2394.7,2394.2,0.41778]
[1728047775722,8.74637339,2395.0,2394.8,0.41767]
[1728047776212,5.46464,2395.0,2394.8,0.41767]
[1728047776418,5.047,2395.0,2394.5,0.8868]
[1728047776725,5.46464,2395.0,2394.8,0.41766]
[1728047777021,6.09111,2395.0,2394.6,0.41771]
[1728047777325,0.41768,2394.8,2394.6,0.41771]
[1728047777525,6.09111,2395.0,2394.6,0.41771]
[1728047777725,0.41768,2394.8,2394.6,0.41771]
[1728047777922,0.41771,2394.6,2394.5,0.41772]
[1728047778130,4.30423,2394.7,2394.1,2.07192676]
[1728047778419,4.30423,2394.7,2394.4,0.41774]
[1728047778420,1.32762,2394.5,2394.4,0.41774]
[1728047778817,0.9099,2394.5,2394.4,0.41774]
[1728047779012,0.9099,2394.5,2394.1,1.8323]
[1728047779238,0.41777,2394.3,2394.1,0.41778]
[1728047779421,0.9227,2394.4,2393.9,1.98541886]
[1728047779618,1.32763,2394.5,2394.0,1.04452]
[1728047779818,1.32763,2394.5,2394.4,0.41774]
[1728047780019,0.41775,2394.4,2394.3,0.41775]
[1728047780221,0.41775,2394.4,2394.2,0.41776]
[1728047780428,0.41776,2394.3,2394.2,0.41776]
[1728047780622,0.41777,2394.3,2394.2,0.41777]
[1728047780826,5.21422,2394.5,2393.9,1.98541886]
[1728047781024,0.41778,2394.2,2394.1,0.41779]
[1728047781226,8.42202,2394.5,2393.9,1.98541886]
[1728047781423,0.41775,2394.4,2394.3,0.41775]
[1728047781619,0.41775,2394.4,2394.0,1.04453]
[1728047781823,0.9099,2394.5,2394.4,0.41774]
[1728047782223,6.4678,2394.9,2394.4,4.176]
[1728047782224,3.28173339,2394.9,2394.4,4.176]
[1728047782426,1.29066,2394.9,2394.7,0.41767]
[1728047782628,0.873,2394.9,2394.7,0.41767]
[1728047782827,0.41771,2394.6,2394.2,0.9091]
[1728047783016,0.41773,2394.5,2394.3,0.41774]
[1728047783220,0.41773,2394.5,2394.4,0.41774]
[1728047783418,0.41773,2394.5,2394.2,5.0058]
[1728047783622,4.30423,2394.7,2394.4,0.41773]
[1728047783824,0.41771,2394.6,2394.4,0.41773]
[1728047784225,0.41771,2394.6,2394.5,0.41772]
[1728047785137,0.41771,2394.6,2394.4,0.41773]
[1728047785621,0.9221,2394.5,2394.4,0.41773]
[1728047785923,0.9221,2394.5,2394.0,1.04453]
[1728047785924,0.41775,2394.4,2394.0,1.46234]
[1728047786118,1.8661,2394.5,2394.0,1.04453]
[1728047786327,1.8661,2394.5,2394.4,0.41774]
[1728047786731,2.28382,2394.5,2394.4,0.41774]
[1728047787030,0.9464,2394.7,2394.2,1.04443]
[1728047787229,1.36409,2394.7,2394.6,0.41771]
[1728047787530,0.9464,2394.7,2394.3,1.7899]
[1728047787718,1.3641,2394.7,2394.3,1.7899]
[1728047787922,1.3641,2394.7,2394.3,2.8343]
[1728047788333,0.41771,2394.6,2394.5,0.41771]
[1728047788634,0.41771,2394.6,2394.3,4.9977]
[1728047788832,0.41771,2394.6,2394.5,0.41772]
[1728047789049,0.41771,2394.6,2394.4,0.41773]
[1728047789824,1.3641,2394.7,2394.5,0.41771]
[1728047790032,0.9464,2394.7,2394.3,0.9176]
[1728047790334,0.41773,2394.5,2394.4,0.41774]
[1728047790536,1.99065,2394.7,2394.4,0.41773]
[1728047790537,0.41772,2394.6,2394.4,0.41773]
[1728047790832,0.9464,2394.7,2394.2,1.04444]
[1728047791024,0.9464,2394.7,2394.6,0.41771]
[1728047791636,0.41771,2394.6,2394.3,3.2078]
[1728047791831,0.41771,2394.6,2394.4,0.41773]
[1728047792024,0.9464,2394.7,2394.6,0.41771]
[1728047792328,0.9464,2394.7,2394.3,3.2078]
[1728047792743,0.41774,2394.5,2394.3,3.62555]
[1728047792927,5.25064,2394.7,2394.3,3.62555]
[1728047792928,4.2064,2394.7,2394.5,0.41771]
[1728047793232,0.41774,2394.4,2394.3,3.62554]
[1728047793437,0.41774,2394.4,2394.3,0.41776]
[1728047793635,1.04427,2394.6,2394.1,1.8369]
[1728047793929,1.7995,2394.3,2394.2,0.41778]
[1728047795733,1.7995,2394.3,2393.9,4.25234]
[1728047795932,2.21727,2394.3,2393.9,3.2078]
[1728047796152,0.8921,2394.2,2394.1,0.41778]
[1728047797639,0.8921,2394.2,2394.1,0.41779]
[1728047801235,1.30988,2394.2,2393.8,6.27367999]
[1728047801432,0.8921,2394.2,2394.1,0.41779]
[1728047801628,0.8921,2394.2,2393.8,6.27367999]
[1728047801629,1.30988,2394.2,2393.8,6.27367999]
[1728047801936,0.8921,2394.2,2394.1,0.41779]
[1728047802931,0.8921,2394.2,2393.9,4.25237]
[1728047802932,0.41781,2394.0,2393.9,0.41782]
[1728047803434,0.41779,2394.1,2394.0,0.4178]
[1728047804332,0.8921,2394.2,2394.1,0.41779]
[1728047805534,1.30988,2394.2,2394.1,0.41779]
[1728047806532,0.8921,2394.2,2394.1,0.41779]
[1728047807743,1.30988,2394.2,2394.1,0.41779]
[1728047807940,0.4178,2394.1,2394.0,0.4178]
[1728047808438,0.8921,2394.2,2393.9,0.41782]
[1728047808439,0.41782,2394.0,2393.9,0.41782]
[1728047809235,1.93655,2394.2,2393.7,1.04466]
[1728047809438,1.30989,2394.2,2394.1,0.41779]
[1728047809633,1.8093,2394.2,2394.1,0.41779]
[1728047810235,0.4178,2394.1,2394.0,0.4178]
[1728047810645,0.41782,2394.0,2393.9,0.41782]
[1728047811830,0.41782,2394.1,2394.0,0.4178]
[1728047812042,0.41783,2394.0,2393.9,0.41782]
[1728047812650,0.41786,2393.8,2393.7,0.41785]
[1728047812841,0.41787,2393.7,2393.6,0.41787]
[1728047813141,2.41657,2393.7,2393.6,0.41787]
[1728047813534,2.41657,2393.7,2393.4,3.2078]
[1728047813734,0.41789,2393.6,2393.5,0.41788]
[1728047813931,2.41658,2393.7,2393.6,0.41788]
[1728047814335,0.4179,2393.6,2393.5,0.41788]
[1728047814943,2.41658,2393.7,2393.2,3.88628]
[1728047815141,0.9371,2393.5,2393.4,0.41792]
[1728047816646,1.0003,2393.7,2393.6,0.41788]